[Event "SRB-chT Men 1st League 2019"]
[Site "Subotica"]
[Date "2019.08.26"]
[Round "5.6"]
[White "Ostojic, Nikola"]
[Black "Todorovic, Jovan"]
[Result "1/2-1/2"]
[ECO "E70"]
[WhiteElo "2432"]
[BlackElo "2345"]
[Annotator "NA"]
[PlyCount "90"]
[EventDate "2019.08.23"]
[EventType "team-tourn"]
[EventCountry "SRB"]
[SourceTitle "playchess.com"]
[Source "ChessBase"]
[SourceQuality "1"]
[TimeControl "40/5400+30:1800+30"]

1. d4 {[%emt 0:00:00]} Nf6 {[%emt 0:02:40]} 2. c4 {[%emt 0:00:00]} g6 {[%emt 0:01:17]} 3. Nc3 {[%emt 0:00:00]} Bg7 {[%emt 0:00:06]} 4. e4 {[%emt 0:00:00]} d6 {[%emt 0:00:30]} 5. Nge2 {[%emt 0:00:34]} Nbd7 {[%emt 0:05:19]} 6. Ng3 {[%emt 0:18:02]} e5 {[%emt 0:03:15]} 7. d5 {[%emt 0:00:19]} a5 {[%emt 0:00:51]} 8. Be2 {[%emt 0:03:49]} Nc5 {[%emt 0:04:34]} 9. h4 {[%emt 0:02:15]} h5 {[%emt 0:03:55]} 10. Bg5 {[%emt 0:00:06]} Bh6 {[%emt 0:01:10]} 11. Bxh6 {[%emt 0:00:18]} Rxh6 {[%emt 0:00:11]} 12. Qd2 {[%emt 0:03:16]} Rh8 {[%emt 0:00:25]} 13. O-O-O {[%emt 0:03:39]} Qe7 {[%emt 0:12:23]} 14. Kb1 {[%emt 0:02:57]} Rh7 {[%emt 0:24:54]} 15. f3 {[%emt 0:22:08]} Bd7 {[%emt 0:05:34]} 16. b3 {[%emt 0:02:13]} Kf8 {[%emt 0:01:31]} 17. Kb2 {[%emt 0:17:27]} Ne8 {[%emt 0:08:46]} 18. Rdf1 {[%emt 0:01:13]} Kg7 {[%emt 0:12:03]} 19. Bd1 {[%emt 0:01:08]} Rh8 {[%emt 0:00:39]} 20. Bc2 {[%emt 0:00:59]} Rf8 {[%emt 0:04:39]} 21. Nge2 {[%emt 0:09:43]} Nf6 {[%emt 0:01:10]} 22. Nc1 {[%emt 0:05:03]} a4 {[%emt 0:00:38]} 23. b4 {[%emt 0:01:14]} a3+ {[%emt 0:00:11]} 24. Ka1 {[%emt 0:00:53]} Na6 {[%emt 0:00:31]} 25. Nd3 {[%emt 0:01:04]} c6 {[%emt 0:00:41]} 26. dxc6 {[%emt 0:00:53]} bxc6 {[%emt 0:00:13]} 27. b5 {[%emt 0:01:16]} Nc7 {[%emt 0:01:01]} 28. bxc6 {[%emt 0:01:02]} Bxc6 {[%emt 0:00:08]} 29. Nb4 {[%emt 0:00:04]} Bb7 {[%emt 0:01:09]} 30. Rd1 {[%emt 0:01:18]} Rfd8 {[%emt 0:00:24]} 31. Rb1 {[%emt 0:01:31]} Ne6 {[%emt 0:01:26]} 32. Ncd5 {[%emt 0:00:25]} Nxd5 {[%emt 0:00:45]} 33. cxd5 {[%emt 0:00:14]} Nc5 {[%emt 0:01:06]} 34. Bd3 {[%emt 0:00:39]} Rdc8 {[%emt 0:00:50]} 35. Bb5 {[%emt 0:00:09]} Qc7 {[%emt 0:01:05]} 36. Bc6 {[%emt 0:00:47]} Rab8 {[%emt 0:00:41]} 37. Bxb7 {[%emt 0:00:31]} Rxb7 {[%emt 0:00:15]} 38. Nc6 {[%emt 0:00:05]} Ra8 {[%emt 0:00:46]} 39. Rhc1 {[%emt 0:01:24]} Rxb1+ {[%emt 0:00:45]} 40. Rxb1 {[%emt 0:00:00]} Qc8 {[%emt 0:00:00]} 41. Qe2 {[%emt 0:01:07]} Na4 {[%emt 0:05:55]} 42. Rb3 {[%emt 0:01:11]} Nc5 {[%emt 0:00:16]} 43. Rb1 {[%emt 0:20:15]} Na4 {[%emt 0:06:33]} 44. Rb3 {[%emt 0:00:42]} Nc5 {[%emt 0:09:26]} 45. Rb1 {[%emt 0:10:37]} Kh7 {[%emt 0:11:53]} 1/2-1/2

[Event "SRB-chT Men 1st League 2019"]
[Site "Subotica"]
[Date "2019.08.26"]
[Round "5.7"]
[White "Mastrovasilis, Athanasios"]
[Black "Sedlak, Nikola"]
[Result "1/2-1/2"]
[ECO "D13"]
[WhiteElo "2518"]
[BlackElo "2590"]
[Annotator "ChessBase"]
[PlyCount "31"]
[EventDate "2019.08.23"]
[EventType "team-tourn"]
[EventCountry "SRB"]
[SourceTitle "playchess.com"]
[Source "ChessBase"]
[SourceQuality "1"]
[TimeControl "40/5400+30:1800+30"]

1. d4 {[%emt 0:02:26]} d5 {[%emt 0:02:01]} 2. c4 {[%emt 0:01:21]} c6 {[%emt 0:00:14]} 3. cxd5 {[%emt 0:00:18]} cxd5 {[%emt 0:00:06]} 4. Nf3 {[%emt 0:00:39]} Nf6 {[%emt 0:00:05]} 5. Nc3 {[%emt 0:00:05]} Nc6 {[%emt 0:00:07]} 6. Bf4 {[%emt 0:00:29]} a6 {[%emt 0:00:15]} 7. Rc1 {[%emt 0:01:28]} Bf5 {[%emt 0:00:11]} 8. e3 {[%emt 0:02:39]} Rc8 {[%emt 0:00:07]} 9. Ne5 {[%emt 0:04:00]} Nxe5 {[%emt 0:01:04]} 10. dxe5 {[%emt 0:00:30]} Ne4 {[%emt 0:00:12]} 11. Nxe4 {[%emt 0:01:50]} Rxc1 {[%emt 0:00:34]} 12. Qxc1 {[%emt 0:00:11]} dxe4 {[%emt 0:04:17]} 13. Be2 {[%emt 0:04:58]} Qa5+ {[%emt 0:03:52]} 14. Qd2 {[%emt 0:00:13]} Qxd2+ {[%emt 0:00:31]} 15. Kxd2 {[%emt 0:00:22]} e6 {[%emt 0:00:30]} 16. Rc1 {[%emt 0:01:00]} 1/2-1/2

[Event "SRB-chT Men 1st League 2019"]
[Site "Subotica"]
[Date "2019.08.26"]
[Round "5.9"]
[White "Savic, Miodrag R"]
[Black "Popovic, Dusan"]
[Result "1/2-1/2"]
[ECO "B08"]
[WhiteElo "2472"]
[BlackElo "2481"]
[Annotator "ChessBase"]
[PlyCount "36"]
[EventDate "2019.08.23"]
[EventType "team-tourn"]
[EventCountry "SRB"]
[SourceTitle "playchess.com"]
[Source "ChessBase"]
[SourceQuality "1"]
[TimeControl "40/5400+30:1800+30"]

1. e4 {[%emt 0:00:22]} g6 {[%emt 0:00:00]} 2. d4 {[%emt 0:01:06]} Bg7 {[%emt 0:00:00]} 3. Nc3 {[%emt 0:01:28]} d6 {[%emt 0:00:00]} 4. Be3 {[%emt 0:01:23]} a6 {[%emt 0:00:17]} 5. a4 {[%emt 0:04:25]} Nc6 {[%emt 0:01:16]} 6. h3 {[%emt 0:13:39]} Nf6 {[%emt 0:04:10]} 7. Nf3 {[%emt 0:00:38]} O-O {[%emt 0:01:35]} 8. Be2 {[%emt 0:02:56]} e5 {[%emt 0:02:54]} 9. dxe5 {[%emt 0:01:12]} dxe5 {[%emt 0:00:12]} 10. O-O {[%emt 0:00:38]} h6 {[%emt 0:03:10]} 11. Qc1 {[%emt 0:05:35]} Kh7 {[%emt 0:04:04]} 12. Rd1 {[%emt 0:03:50]} Qe7 {[%emt 0:01:55]} 13. Bc4 {[%emt 0:05:45]} Be6 {[%emt 0:04:38]} 14. Bxe6 {[%emt 0:07:53]} fxe6 {[%emt 0:00:43]} 15. Nh2 {[%emt 0:06:26]} Rad8 {[%emt 0:03:36]} 16. Rxd8 {[%emt 0:04:12]} Rxd8 {[%emt 0:00:34]} 17. Nf1 {[%emt 0:03:41]} Nd4 {[%emt 0:01:30]} 18. Ng3 {[%emt 0:01:27]} Ne8 {[%emt 0:00:24]} 1/2-1/2

[Event "SRB-chT Men 1st League 2019"]
[Site "Subotica"]
[Date "2019.08.26"]
[Round "5.10"]
[White "Cabarkapa, Novak"]
[Black "Todorovic, Goran M"]
[Result "1/2-1/2"]
[ECO "A07"]
[WhiteElo "2434"]
[BlackElo "2415"]
[Annotator "NA"]
[PlyCount "27"]
[EventDate "2019.08.23"]
[EventType "team-tourn"]
[EventCountry "SRB"]
[SourceTitle "playchess.com"]
[Source "ChessBase"]
[SourceQuality "1"]
[TimeControl "40/5400+30:1800+30"]

1. b3 {[%emt 0:00:00]} d5 {[%emt 0:00:00]} 2. Bb2 {[%emt 0:00:01]} Nf6 {[%emt 0:00:19]} 3. Nf3 {[%emt 0:06:44]} Bf5 {[%emt 0:01:37]} 4. g3 {[%emt 0:04:55]} e6 {[%emt 0:00:25]} 5. Bg2 {[%emt 0:00:48]} h6 {[%emt 0:01:44]} 6. O-O {[%emt 0:00:17]} Be7 {[%emt 0:00:12]} 7. d3 {[%emt 0:02:39]} O-O {[%emt 0:00:36]} 8. Nbd2 {[%emt 0:01:39]} Bh7 {[%emt 0:01:46]} 9. Ne5 {[%emt 0:05:02]} Nfd7 {[%emt 0:02:34]} 10. Nxd7 {[%emt 0:02:22]} Nxd7 {[%emt 0:03:21]} 11. e4 {[%emt 0:01:02]} c6 {[%emt 0:01:58]} 12. f4 {[%emt 0:08:38]} Qc7 {[%emt 0:14:20]} 13. Kh1 {[%emt 0:11:42]} Rfe8 {[%emt 0:08:57]} 14. Qe2 {[%emt 0:05:17]} 1/2-1/2

[Event "SRB-chT Men 1st League 2019"]
[Site "Subotica"]
[Date "2019.08.26"]
[Round "5.11"]
[White "Markovic, Miroslav"]
[Black "Lukovic, Vladimir"]
[Result "1/2-1/2"]
[ECO "C85"]
[WhiteElo "2394"]
[BlackElo "2420"]
[Annotator "NA"]
[PlyCount "61"]
[EventDate "2019.08.23"]
[EventType "team-tourn"]
[EventCountry "SRB"]
[SourceTitle "playchess.com"]
[Source "ChessBase"]
[SourceQuality "1"]
[TimeControl "40/5400+30:1800+30"]

1. e4 {[%emt 1:30:30]} e5 {[%emt 1:30:30]} 2. Nf3 {[%emt 0:00:30]} Nc6 {[%emt 0:00:30]} 3. Bb5 {[%emt 0:00:30]} a6 {[%emt 0:00:30]} 4. Ba4 {[%emt 0:00:30]} Nf6 {[%emt 0:00:30]} 5. O-O {[%emt 0:00:30]} Be7 {[%emt 0:00:30]} 6. Bxc6 {[%emt 0:00:30]} dxc6 {[%emt 0:00:30]} 7. d3 {[%emt 0:00:30]} Nd7 {[%emt 0:00:30]} 8. Nbd2 {[%emt 0:00:30]} f6 {[%emt 0:00:30]} 9. Nh4 {[%emt 0:00:30]} Nf8 {[%emt 0:00:30]} 10. Nc4 {[%emt 0:00:30]} Be6 {[%emt 0:00:30]} 11. Ne3 {[%emt 0:00:30]} Qd7 {[%emt 0:00:30]} 12. Nef5 {[%emt 0:00:30]} Bc5 {[%emt 0:00:30]} 13. Be3 {[%emt 0:00:30]} Bxe3 {[%emt 0:00:30]} 14. Nxe3 {[%emt 0:00:30]} O-O-O {[%emt 0:00:30]} 15. b4 {[%emt 0:00:30]} Ng6 {[%emt 0:00:30]} 16. Nf3 {[%emt 0:00:30]} h5 {[%emt 0:00:30]} 17. Nd2 {[%emt 0:00:30]} Nf4 {[%emt 0:00:30]} 18. a4 {[%emt 0:00:30]} g5 {[%emt 0:00:30]} 19. Re1 {[%emt 0:00:30]} g4 {[%emt 0:00:30]} 20. Ndf1 {[%emt 0:00:30]} h4 {[%emt 0:00:30]} 21. Qd2 {[%emt 0:00:30]} Rdg8 {[%emt 0:00:30]} 22. Reb1 {[%emt 0:00:30]} b6 {[%emt 0:00:30]} 23. b5 {[%emt 0:00:30]} a5 {[%emt 0:00:30]} 24. bxc6 {[%emt 0:00:30]} Qxc6 {[%emt 0:00:30]} 25. c4 {[%emt 0:00:30]} Qc5 {[%emt 0:00:30]} 26. g3 {[%emt 0:00:30]} hxg3 {[%emt 0:00:30]} 27. fxg3 {[%emt 0:00:30]} Qd4 {[%emt 0:00:30]} 28. Ra3 {[%emt 0:00:30]} Rd8 {[%emt 0:00:30]} 29. Rd1 {[%emt 0:00:30]} Nh3+ 30. Kg2 Ng5 31. Nc2 {[%emt 0:01:00]} 1/2-1/2

[Event "SRB-chT Men 1st League 2019"]
[Site "Subotica"]
[Date "2019.08.26"]
[Round "5.12"]
[White "Zegarac, Vuk"]
[Black "Drazic, Sinisa"]
[Result "1/2-1/2"]
[ECO "B06"]
[WhiteElo "2310"]
[BlackElo "2379"]
[Annotator "NA"]
[PlyCount "43"]
[EventDate "2019.08.23"]
[EventType "team-tourn"]
[EventCountry "SRB"]
[SourceTitle "playchess.com"]
[Source "ChessBase"]
[SourceQuality "1"]
[TimeControl "40/5400+30:1800+30"]

1. d4 {[%emt 0:00:11]} c6 {[%emt 0:00:02]} 2. Nf3 {[%emt 0:00:40]} g6 {[%emt 0:00:44]} 3. c3 {[%emt 0:02:25]} Bg7 {[%emt 0:00:32]} 4. e4 {[%emt 0:02:41]} d6 {[%emt 0:03:35]} 5. Be2 {[%emt 0:03:44]} Nf6 {[%emt 0:00:09]} 6. Qc2 {[%emt 0:00:07]} O-O {[%emt 0:00:05]} 7. O-O {[%emt 0:00:25]} a5 {[%emt 0:00:55]} 8. a4 {[%emt 0:01:44]} d5 {[%emt 0:05:26]} 9. e5 {[%emt 0:05:49]} Ne4 {[%emt 0:00:34]} 10. Bd3 {[%emt 0:00:07]} c5 {[%emt 0:08:22]} 11. Bxe4 {[%emt 0:03:09]} dxe4 {[%emt 0:00:02]} 12. Qxe4 {[%emt 0:00:09]} cxd4 {[%emt 0:01:00]} 13. Nxd4 {[%emt 0:01:48]} Nc6 {[%emt 0:00:05]} 14. f4 {[%emt 0:03:21]} Qb6 {[%emt 0:01:56]} 15. Na3 {[%emt 0:06:51]} Bf5 {[%emt 0:02:04]} 16. Qe3 {[%emt 0:00:49]} Nxd4 {[%emt 0:01:14]} 17. Qxd4 {[%emt 0:00:55]} Qb3 {[%emt 0:07:58]} 18. Qd1 {[%emt 0:05:27]} Qb6+ {[%emt 0:01:45]} 19. Qd4 {[%emt 0:00:07]} Qb3 {[%emt 0:15:00]} 20. Qd1 {[%emt 0:00:39]} Qb6+ {[%emt 0:02:49]} 21. Qd4 {[%emt 0:00:25]} Qb3 {[%emt 0:11:47]} 22. Qd1 {[%emt 0:00:37]} 1/2-1/2

[Event "SRB-chT Men 1st League 2019"]
[Site "Subotica"]
[Date "2019.08.26"]
[Round "5.15"]
[White "Lajthajm, Borko"]
[Black "Miladinovic, Igor"]
[Result "0-1"]
[ECO "B22"]
[WhiteElo "2414"]
[BlackElo "2532"]
[Annotator "ChessBase"]
[PlyCount "108"]
[EventDate "2019.08.23"]
[EventType "team-tourn"]
[EventCountry "SRB"]
[SourceTitle "playchess.com"]
[Source "ChessBase"]
[SourceQuality "1"]
[TimeControl "40/5400+30:1800+30"]

1. e4 {[%emt 0:00:00]} c5 {[%emt 0:00:00]} 2. c3 {[%emt 0:00:00]} Nf6 {[%emt 0:00:16]} 3. e5 {[%emt 0:00:00]} Nd5 {[%emt 0:00:02]} 4. Nf3 {[%emt 0:00:05]} Nc6 {[%emt 0:00:06]} 5. Bc4 {[%emt 0:00:12]} Nb6 {[%emt 0:00:02]} 6. Bb3 {[%emt 0:00:43]} c4 {[%emt 0:01:17]} 7. Bc2 {[%emt 0:00:15]} d6 {[%emt 0:00:46]} 8. exd6 {[%emt 0:01:51]} Qxd6 {[%emt 0:00:12]} 9. d4 {[%emt 0:01:43]} cxd3 {[%emt 0:00:29]} 10. Qxd3 {[%emt 0:00:10]} Qxd3 {[%emt 0:03:44]} 11. Bxd3 {[%emt 0:00:06]} e5 {[%emt 0:01:19]} 12. O-O {[%emt 0:00:36]} f6 {[%emt 0:05:27]} 13. a4 {[%emt 0:01:53]} Be6 {[%emt 0:03:09]} 14. a5 {[%emt 0:01:37]} Bc4 {[%emt 0:00:57]} 15. Bxc4 {[%emt 0:01:10]} Nxc4 {[%emt 0:00:06]} 16. a6 {[%emt 0:00:05]} b5 {[%emt 0:09:13]} 17. b3 {[%emt 0:01:46]} Nb6 {[%emt 0:05:15]} 18. Rd1 {[%emt 0:02:25]} Rd8 {[%emt 0:01:04]} 19. Rxd8+ {[%emt 0:01:58]} Kxd8 {[%emt 0:00:02]} 20. Ba3 {[%emt 0:01:35]} Nd5 {[%emt 0:04:58]} 21. Ra2 {[%emt 0:12:34]} Kc8 {[%emt 0:01:27]} 22. c4 {[%emt 0:05:47]} bxc4 {[%emt 0:04:43]} 23. bxc4 {[%emt 0:00:28]} Ndb4 {[%emt 0:00:57]} 24. Bxb4 {[%emt 0:00:57]} Bxb4 {[%emt 0:00:07]} 25. Nbd2 {[%emt 0:05:51]} Rd8 {[%emt 0:00:29]} 26. g4 {[%emt 0:01:48]} Rd3 {[%emt 0:04:43]} 27. Kg2 {[%emt 0:00:23]} Ra3 {[%emt 0:01:33]} 28. Rxa3 {[%emt 0:00:20]} Bxa3 {[%emt 0:00:02]} 29. Ne4 {[%emt 0:00:32]} Nb8 {[%emt 0:01:49]} 30. g5 {[%emt 0:06:02]} Be7 {[%emt 0:01:28]} 31. Nh4 {[%emt 0:00:14]} Nxa6 {[%emt 0:02:01]} 32. Nf5 {[%emt 0:01:15]} Kd7 {[%emt 0:00:08]} 33. Nxg7 {[%emt 0:04:14]} fxg5 {[%emt 0:01:31]} 34. Nh5 {[%emt 0:01:26]} Nc5 {[%emt 0:01:53]} 35. Nc3 {[%emt 0:01:26]} a5 {[%emt 0:01:55]} 36. Ng3 {[%emt 0:01:26]} a4 {[%emt 0:00:26]} 37. Kf3 {[%emt 0:00:30]} a3 {[%emt 0:01:07]} 38. Kg4 {[%emt 0:01:01]} Ke6 {[%emt 0:02:45]} 39. f3 {[%emt 0:01:03]} e4 {[%emt 0:04:30]} 40. fxe4 {[%emt 0:00:00]} Ke5 {[%emt 0:00:00]} 41. Kf3 {[%emt 0:01:14]} Nd3 {[%emt 0:02:56]} 42. Nge2 {[%emt 0:03:55]} h5 {[%emt 0:01:06]} 43. h3 {[%emt 0:02:44]} Bc5 {[%emt 0:00:17]} 44. Kg3 {[%emt 0:05:43]} Nb4 {[%emt 0:02:07]} 45. Kf3 {[%emt 0:02:25]} Bb6 {[%emt 0:01:59]} 46. Nc1 {[%emt 0:00:59]} Bd4 {[%emt 0:01:47]} 47. N3a2 {[%emt 0:01:52]} Nxa2 {[%emt 0:00:26]} 48. Nxa2 {[%emt 0:00:06]} Bc5 {[%emt 0:00:07]} 49. Nc1 {[%emt 0:06:53]} Kd4 {[%emt 0:00:23]} 50. Ke2 {[%emt 0:00:04]} Kxc4 {[%emt 0:01:43]} 51. Kd2 {[%emt 0:00:07]} g4 {[%emt 0:02:47]} 52. hxg4 {[%emt 0:00:14]} hxg4 {[%emt 0:00:01]} 53. Kc2 {[%emt 0:00:32]} g3 {[%emt 0:00:05]} 54. e5 {[%emt 0:02:30]} g2 {[%emt 0:00:07]} 0-1

[Event "SRB-chT Men 1st League 2019"]
[Site "Subotica"]
[Date "2019.08.26"]
[Round "5.17"]
[White "Radlovacki, Jovan"]
[Black "Lazic, Miroljub"]
[Result "0-1"]
[ECO "C55"]
[WhiteElo "2265"]
[BlackElo "2387"]
[Annotator "NA"]
[PlyCount "92"]
[EventDate "2019.08.23"]
[EventType "team-tourn"]
[EventCountry "SRB"]
[SourceTitle "playchess.com"]
[Source "ChessBase"]
[SourceQuality "1"]
[TimeControl "40/5400+30:1800+30"]

1. e4 {[%emt 0:01:03]} e5 {[%emt 0:00:00]} 2. Nf3 {[%emt 0:00:06]} Nc6 {[%emt 0:00:01]} 3. Bb5 {[%emt 0:02:27]} a6 {[%emt 0:00:10]} 4. Ba4 {[%emt 0:00:07]} Nf6 {[%emt 0:00:13]} 5. d3 {[%emt 0:01:13]} b5 {[%emt 0:04:54]} 6. Bb3 {[%emt 0:02:38]} Be7 {[%emt 0:00:02]} 7. O-O {[%emt 0:13:57]} d6 {[%emt 0:00:20]} 8. c3 {[%emt 0:00:26]} O-O {[%emt 0:00:28]} 9. h3 {[%emt 0:00:10]} Na5 {[%emt 0:07:00]} 10. Bc2 {[%emt 0:00:48]} c5 {[%emt 0:00:09]} 11. Qe2 {[%emt 0:04:42]} Re8 {[%emt 0:01:07]} 12. Rd1 {[%emt 0:00:40]} Qc7 {[%emt 0:01:58]} 13. Nbd2 {[%emt 0:00:11]} Bf8 {[%emt 0:02:46]} 14. Nf1 {[%emt 0:00:32]} Bb7 {[%emt 0:08:24]} 15. Bg5 {[%emt 0:08:47]} Nd7 {[%emt 0:00:51]} 16. Ne3 {[%emt 0:00:24]} h6 {[%emt 0:03:27]} 17. Bh4 {[%emt 0:00:36]} Nb6 {[%emt 0:02:57]} 18. Rac1 {[%emt 0:05:54]} Nc6 {[%emt 0:10:17]} 19. a3 {[%emt 0:22:01]} Ne7 {[%emt 0:01:24]} 20. d4 {[%emt 0:10:01]} Ng6 {[%emt 0:02:24]} 21. dxc5 {[%emt 0:01:39]} dxc5 {[%emt 0:00:46]} 22. c4 {[%emt 0:00:45]} bxc4 {[%emt 0:18:02]} 23. Nxc4 {[%emt 0:01:08]} Nf4 {[%emt 0:00:40]} 24. Qf1 {[%emt 0:00:06]} Nxc4 {[%emt 0:00:14]} 25. Qxc4 {[%emt 0:00:06]} a5 {[%emt 0:00:05]} 26. Kh2 {[%emt 0:10:18]} Ba6 {[%emt 0:01:16]} 27. Qa4 {[%emt 0:00:53]} Qb6 {[%emt 0:03:48]} 28. Ne1 {[%emt 0:05:18]} Ne2 {[%emt 0:01:18]} 29. Rb1 {[%emt 0:00:28]} Nd4 {[%emt 0:00:08]} 30. Bd3 {[%emt 0:00:22]} Bb7 {[%emt 0:19:09]} 31. b3 {[%emt 0:02:08]} Rab8 {[%emt 0:01:29]} 32. Nc2 {[%emt 0:01:42]} Bc6 {[%emt 0:02:02]} 33. Qc4 {[%emt 0:00:03]} Bb5 {[%emt 0:01:41]} 34. Qc3 {[%emt 0:00:03]} Bxd3 {[%emt 0:00:35]} 35. Qxd3 {[%emt 0:00:37]} Nxb3 {[%emt 0:00:48]} 36. Ne3 {[%emt 0:01:21]} a4 {[%emt 0:01:42]} 37. Nd5 {[%emt 0:00:18]} Qc6 {[%emt 0:00:36]} 38. Qc4 {[%emt 0:00:57]} Nd2 {[%emt 0:01:05]} 39. Rxd2 {[%emt 0:01:57]} Rxb1 {[%emt 0:00:02]} 40. Rd3 {[%emt 0:00:00]} Rb3 {[%emt 0:00:00]} 41. Rxb3 {[%emt 0:03:26]} axb3 {[%emt 0:03:36]} 42. Qxb3 {[%emt 0:01:58]} c4 {[%emt 0:00:10]} 43. Qc3 {[%emt 0:00:38]} Qc5 {[%emt 0:00:19]} 44. a4 {[%emt 0:01:45]} Qd4 {[%emt 0:00:18]} 45. Qg3 {[%emt 0:01:41]} Re6 {[%emt 0:02:32]} 46. a5 {[%emt 0:01:30]} Qd3 {[%emt 0:08:15]} 0-1

[Event "SRB-chT Men 1st League 2019"]
[Site "Subotica"]
[Date "2019.08.26"]
[Round "5.18"]
[White "Laketic, Gojko"]
[Black "Sredojevic, Ivan"]
[Result "1/2-1/2"]
[ECO "E92"]
[WhiteElo "2376"]
[BlackElo "2232"]
[Annotator "NA"]
[PlyCount "56"]
[EventDate "2019.08.23"]
[EventType "team-tourn"]
[EventCountry "SRB"]
[SourceTitle "playchess.com"]
[Source "ChessBase"]
[SourceQuality "1"]
[TimeControl "40/5400+30:1800+30"]

1. d4 {[%emt 0:00:00]} Nf6 {[%emt 0:00:00]} 2. c4 {[%emt 0:00:10]} g6 {[%emt 0:00:00]} 3. Nc3 {[%emt 0:00:18]} Bg7 {[%emt 0:00:07]} 4. e4 {[%emt 0:00:18]} d6 {[%emt 0:00:05]} 5. Nf3 {[%emt 0:00:09]} O-O {[%emt 0:00:07]} 6. Be2 {[%emt 0:00:11]} e5 {[%emt 0:00:04]} 7. d5 {[%emt 0:00:40]} a5 {[%emt 0:06:40]} 8. Bg5 {[%emt 0:00:27]} h6 {[%emt 0:01:21]} 9. Bh4 {[%emt 0:00:54]} Na6 {[%emt 0:00:07]} 10. Nd2 {[%emt 0:00:15]} Bd7 {[%emt 0:02:12]} 11. f3 {[%emt 0:09:06]} Qe8 {[%emt 0:00:58]} 12. Bf2 {[%emt 0:00:10]} Nh7 {[%emt 0:02:03]} 13. b3 {[%emt 0:03:57]} h5 {[%emt 0:01:35]} 14. a3 {[%emt 0:03:50]} Qe7 {[%emt 0:00:38]} 15. h4 {[%emt 0:03:42]} Bh6 {[%emt 0:01:31]} 16. Rb1 {[%emt 0:02:01]} c5 {[%emt 0:03:16]} 17. Bd3 {[%emt 0:10:36]} f5 {[%emt 0:06:38]} 18. Qe2 {[%emt 0:15:46]} Nf6 {[%emt 0:05:13]} 19. Nf1 {[%emt 0:00:09]} Rf7 {[%emt 0:28:48]} 20. Kd1 {[%emt 0:12:42]} Nc7 {[%emt 0:08:56]} 21. Ng3 {[%emt 0:00:50]} Raf8 {[%emt 0:16:08]} 22. Kc2 {[%emt 0:01:34]} fxe4 {[%emt 0:03:44]} 23. Ngxe4 {[%emt 0:00:36]} Nxe4 {[%emt 0:00:31]} 24. Bxe4 {[%emt 0:03:25]} Bf5 {[%emt 0:00:45]} 25. Qd3 {[%emt 0:10:34]} Ne8 {[%emt 0:01:08]} 26. b4 {[%emt 0:04:28]} axb4 {[%emt 0:00:13]} 27. axb4 {[%emt 0:00:05]} cxb4 {[%emt 0:00:48]} 28. Rxb4 {[%emt 0:00:04]} Nf6 {[%emt 0:10:24]} 1/2-1/2

[Event "SRB-chT Men 1st League 2019"]
[Site "Subotica"]
[Date "2019.08.27"]
[Round "6.3"]
[White "Miladinovic, Igor"]
[Black "Ratkovic, Milovan"]
[Result "1-0"]
[ECO "B13"]
[WhiteElo "2532"]
[BlackElo "2411"]
[Annotator "ChessBase"]
[PlyCount "49"]
[EventDate "2019.08.23"]
[EventType "team-tourn"]
[EventCountry "SRB"]
[SourceTitle "playchess.com"]
[Source "ChessBase"]
[SourceQuality "1"]
[TimeControl "40/5400+30:1800+30"]

1. d4 {[%emt 0:00:00]} d5 {[%emt 0:00:17]} 2. Bf4 {[%emt 0:00:01]} c5 {[%emt 0:01:00]} 3. e3 {[%emt 0:00:11]} cxd4 {[%emt 0:00:15]} 4. exd4 {[%emt 0:00:44]} Nc6 {[%emt 0:00:13]} 5. c3 {[%emt 0:00:06]} Nf6 {[%emt 0:00:10]} 6. Nf3 {[%emt 0:01:02]} Bf5 {[%emt 0:03:50]} 7. Qb3 {[%emt 0:00:52]} Na5 {[%emt 0:01:42]} 8. Qa4+ {[%emt 0:01:33]} Bd7 {[%emt 0:00:21]} 9. Qc2 {[%emt 0:00:42]} e6 {[%emt 0:00:12]} 10. Ne5 {[%emt 0:01:02]} Be7 {[%emt 0:01:12]} 11. Nd2 {[%emt 0:03:26]} Rc8 {[%emt 0:01:45]} 12. Ndf3 {[%emt 0:03:05]} O-O {[%emt 0:12:47]} 13. Bd3 {[%emt 0:00:58]} Be8 {[%emt 0:01:12]} 14. Ng5 {[%emt 0:11:21]} h6 {[%emt 0:06:36]} 15. h4 {[%emt 0:02:22]} Nc4 {[%emt 0:27:20]} 16. Bxc4 {[%emt 0:04:32]} dxc4 {[%emt 0:00:42]} 17. Ng4 {[%emt 0:00:07]} g6 {[%emt 0:01:48]} 18. Nxh6+ {[%emt 0:02:54]} Kg7 {[%emt 0:01:06]} 19. h5 {[%emt 0:09:16]} Nd7 {[%emt 0:06:54]} 20. Nhxf7 {[%emt 0:12:19]} Bxf7 {[%emt 0:00:44]} 21. Nxf7 {[%emt 0:06:48]} Rxf7 {[%emt 0:01:15]} 22. Bh6+ {[%emt 0:00:44]} Kh8 {[%emt 0:00:30]} 23. hxg6 {[%emt 0:00:10]} Rf5 {[%emt 0:02:29]} 24. Qe4 {[%emt 0:03:53]} Nf6 {[%emt 0:05:14]} 25. Bf8+ {[%emt 0:04:32]} 1-0

[Event "SRB-chT Men 1st League 2019"]
[Site "Subotica"]
[Date "2019.08.27"]
[Round "6.4"]
[White "Popov, Sinisa S"]
[Black "Miljkovic, Miroslav D"]
[Result "0-1"]
[ECO "E46"]
[WhiteElo "2440"]
[BlackElo "2483"]
[Annotator "ChessBase"]
[PlyCount "72"]
[EventDate "2019.08.23"]
[EventType "team-tourn"]
[EventCountry "SRB"]
[SourceTitle "playchess.com"]
[Source "ChessBase"]
[SourceQuality "1"]
[TimeControl "40/5400+30:1800+30"]

1. d4 {[%emt 0:00:00]} Nf6 {[%emt 0:00:00]} 2. c4 {[%emt 0:00:00]} e6 {[%emt 0:00:00]} 3. Nc3 {[%emt 0:00:12]} Bb4 {[%emt 0:00:03]} 4. e3 {[%emt 0:00:36]} O-O {[%emt 0:00:17]} 5. Nge2 {[%emt 0:05:18]} Re8 {[%emt 0:00:11]} 6. a3 {[%emt 0:01:05]} Bf8 {[%emt 0:00:09]} 7. Ng3 {[%emt 0:03:08]} d5 {[%emt 0:01:00]} 8. Bd3 {[%emt 0:02:35]} c5 {[%emt 0:01:14]} 9. dxc5 {[%emt 0:02:21]} dxc4 {[%emt 0:01:22]} 10. Bxc4 {[%emt 0:00:11]} Qxd1+ {[%emt 0:00:34]} 11. Kxd1 {[%emt 0:02:15]} Bxc5 {[%emt 0:00:22]} 12. Ke2 {[%emt 0:05:48]} a6 {[%emt 0:19:19]} 13. b4 {[%emt 0:08:29]} Be7 {[%emt 0:02:23]} 14. Bb2 {[%emt 0:00:18]} Nbd7 {[%emt 0:02:34]} 15. Nce4 {[%emt 0:19:47]} Nxe4 {[%emt 0:05:43]} 16. Nxe4 {[%emt 0:00:44]} Nb6 {[%emt 0:00:15]} 17. Bd3 {[%emt 0:07:52]} Bd7 {[%emt 0:04:14]} 18. Bd4 {[%emt 0:06:50]} Nd5 {[%emt 0:00:30]} 19. Bc5 {[%emt 0:02:18]} f5 {[%emt 0:03:34]} 20. Nd2 {[%emt 0:13:29]} Bxc5 {[%emt 0:13:20]} 21. bxc5 {[%emt 0:00:10]} Nc3+ {[%emt 0:00:10]} 22. Ke1 {[%emt 0:02:25]} Rac8 {[%emt 0:04:21]} 23. Nb3 {[%emt 0:02:35]} Ba4 {[%emt 0:02:41]} 24. Kd2 {[%emt 0:00:50]} Bxb3 {[%emt 0:03:56]} 25. Kxc3 {[%emt 0:00:11]} Bd5 {[%emt 0:00:06]} 26. Kb4 {[%emt 0:03:17]} Bxg2 {[%emt 0:01:30]} 27. Rhd1 {[%emt 0:00:23]} Bf3 {[%emt 0:02:12]} 28. Rd2 {[%emt 0:00:08]} Red8 {[%emt 0:10:03]} 29. Raa2 {[%emt 0:04:17]} Kf7 {[%emt 0:00:57]} 30. Rac2 {[%emt 0:02:00]} Ke7 {[%emt 0:00:42]} 31. Bc4 {[%emt 0:00:42]} g5 {[%emt 0:01:32]} 32. Bb3 {[%emt 0:01:09]} g4 {[%emt 0:04:28]} 33. Rd6 {[%emt 0:00:27]} a5+ {[%emt 0:00:47]} 34. Kxa5 {[%emt 0:00:55]} Rxc5+ {[%emt 0:00:31]} 35. Rxc5 {[%emt 0:00:08]} Kxd6 {[%emt 0:01:57]} 36. Kb4 {[%emt 0:01:18]} Rf8 {[%emt 0:02:14]} 0-1